Workbook

Sheet Kalibreringsbevis
A1: EQSDokument 28339 v 1.8
A2: Referansetermometer, CALIBRATION RESULTS
A3: Kalibreringsdato: | B3: 2022-12-21
A4: ID ved kalibreringslab: | B4: 433715 | C4: MTA Nr: | D4: 14499 m/sensor SerieNr 1-214293
A6: Måleområde Navn | B6: Sann temperatur | C6: Avlest temperatur | D6: Avvik | E6: Leverandørs spesifikasjoner | F6: Måleusikkerhet (k=2)
A7: Fryser -80 ⁰C | B7: -77.96 | C7: -78.01 | D7: -0.04 | E7: 0.2 | F7: 0.04
A8: Kjøleskap 0 ⁰C | B8: 0 | C8: -0.01 | D8: =C8-B8 -> -0.01 | E8: 0.06 | F8: 0.02
A9: Romtemperatur 20 ⁰C | B9: 20.03 | C9: 20.05 | D9: 0.02 | E9: 0.06 | F9: 0.02
A10: Inkubator 37 ⁰C | B10: 37.01 | C10: 37.06 | D10: 0.05 | E10: 0.07 | F10: 0.02
A11: Autoklave 120 ⁰C | B11: 119.97 | C11: 120 | D11: 0.03 | E11: 0.1 | F11: 0.02
A12: Tørrsterilisator 160 ⁰C | B12: 159.98 | C12: 160.03 | D12: 0.04 | E12: 0.12 | F12: 0.02

Sheet Ti18
A1: =Kalibreringsbevis!A1 -> EQSDokument 28339 v 1.8
A2: Temperaturkontroll av brukstermometeret knyttet til:
A3: Instrument-navn: | B3: BACTEC FX
A4: TEK nr: | B4: ALM 92514
A6: Dato for disse målingene: | B6: 2023-10-03
A7: Identitet til brukstermometer: | B7: Ti18
A8: MTA-nr referansetermometer: | B8: =Kalibreringsbevis!D4 -> 14499 m/sensor SerieNr 1-214293
A9: Utført (Sign): | B9: SON
B11: Brukstermometer | C11: Referansetermometer
A12: Måling 1 | B12: 34.5 | C12: 34.2
A13: Måling 2 | B13: 34.7 | C13: 34.41
A14: Måling 3 | B14: 34.9 | C14: 34.63
A15: Gjennomsnitt | B15: =AVERAGE(B12:B14) -> 34.7 | C15: =AVERAGE(C12:C14) -> 34.41333333
A17: ∆ Referanse- og brukstermometer | B17: =C15-B15 -> -0.2866666667
A18: Korreksjon til referansetermometer i aktuell måleområde | B18: =IF(C18=Kalibreringsbevis!A7,Kalibreringsbevis!D7,IF(C18=Kalibreringsbevis!A8,Kalibreringsbevis!D8,IF(C18=Kalibreringsbevis!A9,Kalibreringsbevis!D9,IF(C18=Kalibreringsbevis!A10,Kalibreringsbevis!D10,IF(C18=Kalibreringsbevis!A11,Kalibreringsbevis!D11,IF(C18=Kalibreringsbevis!A12,Kalibreringsbevis!D12,"")))))) -> 0.05 | C18: Inkubator 37 ⁰C
A19: Korreksjon til brukstermometeret | B19: =B17+B18 -> -0.2366666667
A20: Måleusikkerhet brukstermometer | B20: 0.5
A21: Måleusikkerhet referansetermometer | B21: =IF(C18=Kalibreringsbevis!A7,Kalibreringsbevis!F7,IF(C18=Kalibreringsbevis!A8,Kalibreringsbevis!F8,IF(C18=Kalibreringsbevis!A9,Kalibreringsbevis!F9,IF(C18=Kalibreringsbevis!A10,Kalibreringsbevis!F10,IF(C18=Kalibreringsbevis!A11,Kalibreringsbevis!F11,IF(C18=Kalibreringsbevis!A12,Kalibreringsbevis!F12,"")))))) -> 0.02
A22: Samlet måleusikkerhet | B22: =SQRT(B20^2+B21^2) -> 0.5003998401
C23: Nedre grense | D23: Øvre grense
A24: Ønsket temperatur | B24: 35 | C24: 33.5 | D24: 36.5
A25: Aksjonsgrense | B25: 1.5
A26: Korrigering pga måleusikkerhet og nøyaktighet | C26: Nedre grense | D26: Øvre grense | E26: Aksjonsgrense
A27: Ønsket temperatur | B27: =B24-B19 -> 35.23666667 | C27: =B27-E27 -> 34.23706651 | D27: =B27+E27 -> 36.23626683 | E27: =ABS(B25-B22) -> 0.9996001599
B28: =IF(ABS(B27-B24)<B25*0.2,B24,B27) -> 35 | C28: =B28-E28 -> 33.5 | D28: =B28+E28 -> 36.5 | E28: =IF(ABS(B27-B24)<B25*0.2,B25,ABS(B25-B22)) -> 1.5
A29: Kommentarer:

Sheet Ti19
A1: =Kalibreringsbevis!A1 -> EQSDokument 28339 v 1.8
A2: Temperaturkontroll av brukstermometeret knyttet til:
A3: Instrument-navn: | B3: BACTEC FX
A4: TEK nr: | B4: ALM 92514
A6: Dato for disse målingene: | B6: 2023-10-03
A7: Identitet til brukstermometer: | B7: Ti19
A8: MTA-nr referansetermometer: | B8: =Kalibreringsbevis!D4 -> 14499 m/sensor SerieNr 1-214293
A9: Utført (Sign): | B9: SON
B11: Brukstermometer | C11: Referansetermometer
A12: Måling 1 | B12: 34.6 | C12: 34.2
A13: Måling 2 | B13: 34.8 | C13: 34.41
A14: Måling 3 | B14: 35 | C14: 34.63
A15: Gjennomsnitt | B15: =AVERAGE(B12:B14) -> 34.8 | C15: =AVERAGE(C12:C14) -> 34.41333333
A17: ∆ Referanse- og brukstermometer | B17: =C15-B15 -> -0.3866666667
A18: Korreksjon til referansetermometer i aktuell måleområde | B18: =IF(C18=Kalibreringsbevis!A7,Kalibreringsbevis!D7,IF(C18=Kalibreringsbevis!A8,Kalibreringsbevis!D8,IF(C18=Kalibreringsbevis!A9,Kalibreringsbevis!D9,IF(C18=Kalibreringsbevis!A10,Kalibreringsbevis!D10,IF(C18=Kalibreringsbevis!A11,Kalibreringsbevis!D11,IF(C18=Kalibreringsbevis!A12,Kalibreringsbevis!D12,"")))))) -> 0.05 | C18: Inkubator 37 ⁰C
A19: Korreksjon til brukstermometeret | B19: =B17+B18 -> -0.3366666667
A20: Måleusikkerhet brukstermometer | B20: 0.5
A21: Måleusikkerhet referansetermometer | B21: =IF(C18=Kalibreringsbevis!A7,Kalibreringsbevis!F7,IF(C18=Kalibreringsbevis!A8,Kalibreringsbevis!F8,IF(C18=Kalibreringsbevis!A9,Kalibreringsbevis!F9,IF(C18=Kalibreringsbevis!A10,Kalibreringsbevis!F10,IF(C18=Kalibreringsbevis!A11,Kalibreringsbevis!F11,IF(C18=Kalibreringsbevis!A12,Kalibreringsbevis!F12,"")))))) -> 0.02
A22: Samlet måleusikkerhet | B22: =SQRT(B20^2+B21^2) -> 0.5003998401
C23: Nedre grense | D23: Øvre grense
A24: Ønsket temperatur | B24: 35 | C24: 33.5 | D24: 36.5
A25: Aksjonsgrense | B25: 1.5
A26: Korrigering pga måleusikkerhet og nøyaktighet | C26: Nedre grense | D26: Øvre grense | E26: Aksjonsgrense
A27: Ønsket temperatur | B27: =B24-B19 -> 35.33666667 | C27: =B27-E27 -> 34.33706651 | D27: =B27+E27 -> 36.33626683 | E27: =ABS(B25-B22) -> 0.9996001599
B28: =IF(ABS(B27-B24)<B25*0.2,B24,B27) -> 35.33666667 | C28: =B28-E28 -> 34.33706651 | D28: =B28+E28 -> 36.33626683 | E28: =IF(ABS(B27-B24)<B25*0.2,B25,ABS(B25-B22)) -> 0.9996001599
A29: Kommentarer:

Sheet Ti20
A1: =Kalibreringsbevis!A1 -> EQSDokument 28339 v 1.8
A2: Temperaturkontroll av brukstermometeret knyttet til:
A3: Instrument-navn: | B3: BACTEC FX
A4: TEK nr: | B4: ALM 92518
A6: Dato for disse målingene: | B6: 2023-10-03
A7: Identitet til brukstermometer: | B7: Ti20
A8: MTA-nr referansetermometer: | B8: =Kalibreringsbevis!D4 -> 14499 m/sensor SerieNr 1-214293
A9: Utført (Sign): | B9: SON
B11: Brukstermometer | C11: Referansetermometer
A12: Måling 1 | B12: 34.5 | C12: 34.2
A13: Måling 2 | B13: 34.7 | C13: 34.41
A14: Måling 3 | B14: 35 | C14: 34.63
A15: Gjennomsnitt | B15: =AVERAGE(B12:B14) -> 34.73333333 | C15: =AVERAGE(C12:C14) -> 34.41333333
A17: ∆ Referanse- og brukstermometer | B17: =C15-B15 -> -0.32
A18: Korreksjon til referansetermometer i aktuell måleområde | B18: =IF(C18=Kalibreringsbevis!A7,Kalibreringsbevis!D7,IF(C18=Kalibreringsbevis!A8,Kalibreringsbevis!D8,IF(C18=Kalibreringsbevis!A9,Kalibreringsbevis!D9,IF(C18=Kalibreringsbevis!A10,Kalibreringsbevis!D10,IF(C18=Kalibreringsbevis!A11,Kalibreringsbevis!D11,IF(C18=Kalibreringsbevis!A12,Kalibreringsbevis!D12,"")))))) -> 0.05 | C18: Inkubator 37 ⁰C
A19: Korreksjon til brukstermometeret | B19: =B17+B18 -> -0.27
A20: Måleusikkerhet brukstermometer | B20: 0.5
A21: Måleusikkerhet referansetermometer | B21: =IF(C18=Kalibreringsbevis!A7,Kalibreringsbevis!F7,IF(C18=Kalibreringsbevis!A8,Kalibreringsbevis!F8,IF(C18=Kalibreringsbevis!A9,Kalibreringsbevis!F9,IF(C18=Kalibreringsbevis!A10,Kalibreringsbevis!F10,IF(C18=Kalibreringsbevis!A11,Kalibreringsbevis!F11,IF(C18=Kalibreringsbevis!A12,Kalibreringsbevis!F12,"")))))) -> 0.02
A22: Samlet måleusikkerhet | B22: =SQRT(B20^2+B21^2) -> 0.5003998401
C23: Nedre grense | D23: Øvre grense
A24: Ønsket temperatur | B24: 35 | C24: 33.5 | D24: 36.5
A25: Aksjonsgrense | B25: 1.5
A26: Korrigering pga måleusikkerhet og nøyaktighet | C26: Nedre grense | D26: Øvre grense | E26: Aksjonsgrense
A27: Ønsket temperatur | B27: =B24-B19 -> 35.27 | C27: =B27-E27 -> 34.27039984 | D27: =B27+E27 -> 36.26960016 | E27: =ABS(B25-B22) -> 0.9996001599
B28: =IF(ABS(B27-B24)<B25*0.2,B24,B27) -> 35 | C28: =B28-E28 -> 33.5 | D28: =B28+E28 -> 36.5 | E28: =IF(ABS(B27-B24)<B25*0.2,B25,ABS(B25-B22)) -> 1.5
A29: Kommentarer:

Sheet Ti21
A1: =Kalibreringsbevis!A1 -> EQSDokument 28339 v 1.8
A2: Temperaturkontroll av brukstermometeret knyttet til:
A3: Instrument-navn: | B3: BACTEC FX
A4: TEK nr: | B4: ALM 92518
A6: Dato for disse målingene: | B6: 2023-10-03
A7: Identitet til brukstermometer: | B7: Ti21
A8: MTA-nr referansetermometer: | B8: =Kalibreringsbevis!D4 -> 14499 m/sensor SerieNr 1-214293
A9: Utført (Sign): | B9: SON
B11: Brukstermometer | C11: Referansetermometer
A12: Måling 1 | B12: 34.5 | C12: 34.2
A13: Måling 2 | B13: 34.7 | C13: 34.41
A14: Måling 3 | B14: 35 | C14: 34.63
A15: Gjennomsnitt | B15: =AVERAGE(B12:B14) -> 34.73333333 | C15: =AVERAGE(C12:C14) -> 34.41333333
A17: ∆ Referanse- og brukstermometer | B17: =C15-B15 -> -0.32
A18: Korreksjon til referansetermometer i aktuell måleområde | B18: =IF(C18=Kalibreringsbevis!A7,Kalibreringsbevis!D7,IF(C18=Kalibreringsbevis!A8,Kalibreringsbevis!D8,IF(C18=Kalibreringsbevis!A9,Kalibreringsbevis!D9,IF(C18=Kalibreringsbevis!A10,Kalibreringsbevis!D10,IF(C18=Kalibreringsbevis!A11,Kalibreringsbevis!D11,IF(C18=Kalibreringsbevis!A12,Kalibreringsbevis!D12,"")))))) -> 0.05 | C18: Inkubator 37 ⁰C
A19: Korreksjon til brukstermometeret | B19: =B17+B18 -> -0.27
A20: Måleusikkerhet brukstermometer | B20: 0.5
A21: Måleusikkerhet referansetermometer | B21: =IF(C18=Kalibreringsbevis!A7,Kalibreringsbevis!F7,IF(C18=Kalibreringsbevis!A8,Kalibreringsbevis!F8,IF(C18=Kalibreringsbevis!A9,Kalibreringsbevis!F9,IF(C18=Kalibreringsbevis!A10,Kalibreringsbevis!F10,IF(C18=Kalibreringsbevis!A11,Kalibreringsbevis!F11,IF(C18=Kalibreringsbevis!A12,Kalibreringsbevis!F12,"")))))) -> 0.02
A22: Samlet måleusikkerhet | B22: =SQRT(B20^2+B21^2) -> 0.5003998401
C23: Nedre grense | D23: Øvre grense
A24: Ønsket temperatur | B24: 35 | C24: 33.5 | D24: 36.5
A25: Aksjonsgrense | B25: 1.5
A26: Korrigering pga måleusikkerhet og nøyaktighet | C26: Nedre grense | D26: Øvre grense | E26: Aksjonsgrense
A27: Ønsket temperatur | B27: =B24-B19 -> 35.27 | C27: =B27-E27 -> 34.27039984 | D27: =B27+E27 -> 36.26960016 | E27: =ABS(B25-B22) -> 0.9996001599
B28: =IF(ABS(B27-B24)<B25*0.2,B24,B27) -> 35 | C28: =B28-E28 -> 33.5 | D28: =B28+E28 -> 36.5 | E28: =IF(ABS(B27-B24)<B25*0.2,B25,ABS(B25-B22)) -> 1.5
A29: Kommentarer:

Sheet Ti22
A1: =Kalibreringsbevis!A1 -> EQSDokument 28339 v 1.8
A2: Temperaturkontroll av brukstermometeret knyttet til:
A3: Instrument-navn: | B3: BACTEC FX
A4: TEK nr: | B4: ALM 92515
A6: Dato for disse målingene: | B6: 2023-10-03
A7: Identitet til brukstermometer: | B7: Ti22
A8: MTA-nr referansetermometer: | B8: =Kalibreringsbevis!D4 -> 14499 m/sensor SerieNr 1-214293
A9: Utført (Sign): | B9: SON
B11: Brukstermometer | C11: Referansetermometer
A12: Måling 1 | B12: 34.6 | C12: 34.2
A13: Måling 2 | B13: 34.8 | C13: 34.41
A14: Måling 3 | B14: 35 | C14: 34.63
A15: Gjennomsnitt | B15: =AVERAGE(B12:B14) -> 34.8 | C15: =AVERAGE(C12:C14) -> 34.41333333
A17: ∆ Referanse- og brukstermometer | B17: =C15-B15 -> -0.3866666667
A18: Korreksjon til referansetermometer i aktuell måleområde | B18: =IF(C18=Kalibreringsbevis!A7,Kalibreringsbevis!D7,IF(C18=Kalibreringsbevis!A8,Kalibreringsbevis!D8,IF(C18=Kalibreringsbevis!A9,Kalibreringsbevis!D9,IF(C18=Kalibreringsbevis!A10,Kalibreringsbevis!D10,IF(C18=Kalibreringsbevis!A11,Kalibreringsbevis!D11,IF(C18=Kalibreringsbevis!A12,Kalibreringsbevis!D12,"")))))) -> 0.05 | C18: Inkubator 37 ⁰C
A19: Korreksjon til brukstermometeret | B19: =B17+B18 -> -0.3366666667
A20: Måleusikkerhet brukstermometer | B20: 0.5
A21: Måleusikkerhet referansetermometer | B21: =IF(C18=Kalibreringsbevis!A7,Kalibreringsbevis!F7,IF(C18=Kalibreringsbevis!A8,Kalibreringsbevis!F8,IF(C18=Kalibreringsbevis!A9,Kalibreringsbevis!F9,IF(C18=Kalibreringsbevis!A10,Kalibreringsbevis!F10,IF(C18=Kalibreringsbevis!A11,Kalibreringsbevis!F11,IF(C18=Kalibreringsbevis!A12,Kalibreringsbevis!F12,"")))))) -> 0.02
A22: Samlet måleusikkerhet | B22: =SQRT(B20^2+B21^2) -> 0.5003998401
C23: Nedre grense | D23: Øvre grense
A24: Ønsket temperatur | B24: 35 | C24: 33.5 | D24: 36.5
A25: Aksjonsgrense | B25: 1.5
A26: Korrigering pga måleusikkerhet og nøyaktighet | C26: Nedre grense | D26: Øvre grense | E26: Aksjonsgrense
A27: Ønsket temperatur | B27: =B24-B19 -> 35.33666667 | C27: =B27-E27 -> 34.33706651 | D27: =B27+E27 -> 36.33626683 | E27: =ABS(B25-B22) -> 0.9996001599
B28: =IF(ABS(B27-B24)<B25*0.2,B24,B27) -> 35.33666667 | C28: =B28-E28 -> 34.33706651 | D28: =B28+E28 -> 36.33626683 | E28: =IF(ABS(B27-B24)<B25*0.2,B25,ABS(B25-B22)) -> 0.9996001599
A29: Kommentarer:

Sheet Ti23
A1: =Kalibreringsbevis!A1 -> EQSDokument 28339 v 1.8
A2: Temperaturkontroll av brukstermometeret knyttet til:
A3: Instrument-navn: | B3: BACTEC FX
A4: TEK nr: | B4: ALM 92515
A6: Dato for disse målingene: | B6: 2023-10-03
A7: Identitet til brukstermometer: | B7: Ti23
A8: MTA-nr referansetermometer: | B8: =Kalibreringsbevis!D4 -> 14499 m/sensor SerieNr 1-214293
A9: Utført (Sign): | B9: SON
B11: Brukstermometer | C11: Referansetermometer
A12: Måling 1 | B12: 34.6 | C12: 34.2
A13: Måling 2 | B13: 34.8 | C13: 34.41
A14: Måling 3 | B14: 35 | C14: 34.63
A15: Gjennomsnitt | B15: =AVERAGE(B12:B14) -> 34.8 | C15: =AVERAGE(C12:C14) -> 34.41333333
A17: ∆ Referanse- og brukstermometer | B17: =C15-B15 -> -0.3866666667
A18: Korreksjon til referansetermometer i aktuell måleområde | B18: =IF(C18=Kalibreringsbevis!A7,Kalibreringsbevis!D7,IF(C18=Kalibreringsbevis!A8,Kalibreringsbevis!D8,IF(C18=Kalibreringsbevis!A9,Kalibreringsbevis!D9,IF(C18=Kalibreringsbevis!A10,Kalibreringsbevis!D10,IF(C18=Kalibreringsbevis!A11,Kalibreringsbevis!D11,IF(C18=Kalibreringsbevis!A12,Kalibreringsbevis!D12,"")))))) -> 0.05 | C18: Inkubator 37 ⁰C
A19: Korreksjon til brukstermometeret | B19: =B17+B18 -> -0.3366666667
A20: Måleusikkerhet brukstermometer | B20: 0.5
A21: Måleusikkerhet referansetermometer | B21: =IF(C18=Kalibreringsbevis!A7,Kalibreringsbevis!F7,IF(C18=Kalibreringsbevis!A8,Kalibreringsbevis!F8,IF(C18=Kalibreringsbevis!A9,Kalibreringsbevis!F9,IF(C18=Kalibreringsbevis!A10,Kalibreringsbevis!F10,IF(C18=Kalibreringsbevis!A11,Kalibreringsbevis!F11,IF(C18=Kalibreringsbevis!A12,Kalibreringsbevis!F12,"")))))) -> 0.02
A22: Samlet måleusikkerhet | B22: =SQRT(B20^2+B21^2) -> 0.5003998401
C23: Nedre grense | D23: Øvre grense
A24: Ønsket temperatur | B24: 35 | C24: 33.5 | D24: 36.5
A25: Aksjonsgrense | B25: 1.5
A26: Korrigering pga måleusikkerhet og nøyaktighet | C26: Nedre grense | D26: Øvre grense | E26: Aksjonsgrense
A27: Ønsket temperatur | B27: =B24-B19 -> 35.33666667 | C27: =B27-E27 -> 34.33706651 | D27: =B27+E27 -> 36.33626683 | E27: =ABS(B25-B22) -> 0.9996001599
B28: =IF(ABS(B27-B24)<B25*0.2,B24,B27) -> 35.33666667 | C28: =B28-E28 -> 34.33706651 | D28: =B28+E28 -> 36.33626683 | E28: =IF(ABS(B27-B24)<B25*0.2,B25,ABS(B25-B22)) -> 0.9996001599
A29: Kommentarer:

Sheet Ti24
A1: =Kalibreringsbevis!A1 -> EQSDokument 28339 v 1.8
A2: Temperaturkontroll av brukstermometeret knyttet til:
A3: Instrument-navn: | B3: BACTEC FX
A4: TEK nr: | B4: ALM 92517
A6: Dato for disse målingene: | B6: 2023-10-03
A7: Identitet til brukstermometer: | B7: Ti24
A8: MTA-nr referansetermometer: | B8: =Kalibreringsbevis!D4 -> 14499 m/sensor SerieNr 1-214293
A9: Utført (Sign): | B9: SON
B11: Brukstermometer | C11: Referansetermometer
A12: Måling 1 | B12: 34.6 | C12: 34.2
A13: Måling 2 | B13: 34.8 | C13: 34.41
A14: Måling 3 | B14: 35 | C14: 34.63
A15: Gjennomsnitt | B15: =AVERAGE(B12:B14) -> 34.8 | C15: =AVERAGE(C12:C14) -> 34.41333333
A17: ∆ Referanse- og brukstermometer | B17: =C15-B15 -> -0.3866666667
A18: Korreksjon til referansetermometer i aktuell måleområde | B18: =IF(C18=Kalibreringsbevis!A7,Kalibreringsbevis!D7,IF(C18=Kalibreringsbevis!A8,Kalibreringsbevis!D8,IF(C18=Kalibreringsbevis!A9,Kalibreringsbevis!D9,IF(C18=Kalibreringsbevis!A10,Kalibreringsbevis!D10,IF(C18=Kalibreringsbevis!A11,Kalibreringsbevis!D11,IF(C18=Kalibreringsbevis!A12,Kalibreringsbevis!D12,"")))))) -> 0.05 | C18: Inkubator 37 ⁰C
A19: Korreksjon til brukstermometeret | B19: =B17+B18 -> -0.3366666667
A20: Måleusikkerhet brukstermometer | B20: 0.5
A21: Måleusikkerhet referansetermometer | B21: =IF(C18=Kalibreringsbevis!A7,Kalibreringsbevis!F7,IF(C18=Kalibreringsbevis!A8,Kalibreringsbevis!F8,IF(C18=Kalibreringsbevis!A9,Kalibreringsbevis!F9,IF(C18=Kalibreringsbevis!A10,Kalibreringsbevis!F10,IF(C18=Kalibreringsbevis!A11,Kalibreringsbevis!F11,IF(C18=Kalibreringsbevis!A12,Kalibreringsbevis!F12,"")))))) -> 0.02
A22: Samlet måleusikkerhet | B22: =SQRT(B20^2+B21^2) -> 0.5003998401
C23: Nedre grense | D23: Øvre grense
A24: Ønsket temperatur | B24: 35 | C24: 33.5 | D24: 36.5
A25: Aksjonsgrense | B25: 1.5
A26: Korrigering pga måleusikkerhet og nøyaktighet | C26: Nedre grense | D26: Øvre grense | E26: Aksjonsgrense
A27: Ønsket temperatur | B27: =B24-B19 -> 35.33666667 | C27: =B27-E27 -> 34.33706651 | D27: =B27+E27 -> 36.33626683 | E27: =ABS(B25-B22) -> 0.9996001599
B28: =IF(ABS(B27-B24)<B25*0.2,B24,B27) -> 35.33666667 | C28: =B28-E28 -> 34.33706651 | D28: =B28+E28 -> 36.33626683 | E28: =IF(ABS(B27-B24)<B25*0.2,B25,ABS(B25-B22)) -> 0.9996001599
A29: Kommentarer:

Sheet Ti25
A1: =Kalibreringsbevis!A1 -> EQSDokument 28339 v 1.8
A2: Temperaturkontroll av brukstermometeret knyttet til:
A3: Instrument-navn: | B3: BACTEC FX
A4: TEK nr: | B4: ALM 92517
A6: Dato for disse målingene: | B6: 2023-10-03
A7: Identitet til brukstermometer: | B7: Ti25
A8: MTA-nr referansetermometer: | B8: =Kalibreringsbevis!D4 -> 14499 m/sensor SerieNr 1-214293
A9: Utført (Sign): | B9: SON
B11: Brukstermometer | C11: Referansetermometer
A12: Måling 1 | B12: 34.6 | C12: 34.2
A13: Måling 2 | B13: 34.8 | C13: 34.41
A14: Måling 3 | B14: 35 | C14: 34.63
A15: Gjennomsnitt | B15: =AVERAGE(B12:B14) -> 34.8 | C15: =AVERAGE(C12:C14) -> 34.41333333
A17: ∆ Referanse- og brukstermometer | B17: =C15-B15 -> -0.3866666667
A18: Korreksjon til referansetermometer i aktuell måleområde | B18: =IF(C18=Kalibreringsbevis!A7,Kalibreringsbevis!D7,IF(C18=Kalibreringsbevis!A8,Kalibreringsbevis!D8,IF(C18=Kalibreringsbevis!A9,Kalibreringsbevis!D9,IF(C18=Kalibreringsbevis!A10,Kalibreringsbevis!D10,IF(C18=Kalibreringsbevis!A11,Kalibreringsbevis!D11,IF(C18=Kalibreringsbevis!A12,Kalibreringsbevis!D12,"")))))) -> 0.05 | C18: Inkubator 37 ⁰C
A19: Korreksjon til brukstermometeret | B19: =B17+B18 -> -0.3366666667
A20: Måleusikkerhet brukstermometer | B20: 0.5
A21: Måleusikkerhet referansetermometer | B21: =IF(C18=Kalibreringsbevis!A7,Kalibreringsbevis!F7,IF(C18=Kalibreringsbevis!A8,Kalibreringsbevis!F8,IF(C18=Kalibreringsbevis!A9,Kalibreringsbevis!F9,IF(C18=Kalibreringsbevis!A10,Kalibreringsbevis!F10,IF(C18=Kalibreringsbevis!A11,Kalibreringsbevis!F11,IF(C18=Kalibreringsbevis!A12,Kalibreringsbevis!F12,"")))))) -> 0.02
A22: Samlet måleusikkerhet | B22: =SQRT(B20^2+B21^2) -> 0.5003998401
C23: Nedre grense | D23: Øvre grense
A24: Ønsket temperatur | B24: 35 | C24: 33.5 | D24: 36.5
A25: Aksjonsgrense | B25: 1.5
A26: Korrigering pga måleusikkerhet og nøyaktighet | C26: Nedre grense | D26: Øvre grense | E26: Aksjonsgrense
A27: Ønsket temperatur | B27: =B24-B19 -> 35.33666667 | C27: =B27-E27 -> 34.33706651 | D27: =B27+E27 -> 36.33626683 | E27: =ABS(B25-B22) -> 0.9996001599
B28: =IF(ABS(B27-B24)<B25*0.2,B24,B27) -> 35.33666667 | C28: =B28-E28 -> 34.33706651 | D28: =B28+E28 -> 36.33626683 | E28: =IF(ABS(B27-B24)<B25*0.2,B25,ABS(B25-B22)) -> 0.9996001599
A29: Kommentarer:
